fUST/lending_fUST_20250214
["ID","MTS","AMOUNT","RATE_DAILY","PERIOD"]
[353002811,1739484645672,-500.0,0.0001378,2]
[353002812,1739484645681,-510.55742378,0.0001378,2]
[353002814,1739484645691,-500.0,0.0001378,2]
[353002815,1739484645702,-500.0,0.0001378,2]
[353002816,1739484645712,-500.0,0.0001378,2]
[353002817,1739484645722,-500.0,0.0001378,2]
[353002818,1739484645732,-500.0,0.0001378,2]
[353002819,1739484645742,-511.25565528,0.0001378,2]
[353002820,1739484645752,-500.0,0.0001378,2]
[353002821,1739484645761,-500.0,0.0001378,2]
[353002823,1739484645771,-500.0,0.0001378,2]
[353002824,1739484645781,-500.0,0.0001378,2]
[353002826,1739484645791,-500.0,0.0001378,2]
[353002828,1739484645801,-500.0,0.0001378,2]
[353002829,1739484645811,-500.0,0.0001378,2]
[353002830,1739484645821,-500.0,0.0001378,2]
[353002831,1739484645831,-500.0,0.0001378,2]
[353002832,1739484645840,-500.0,0.0001378,2]
[353002833,1739484645850,-500.0,0.0001378,2]
[353002834,1739484645859,-500.0,0.0001378,2]
[353002835,1739484645868,-500.0,0.0001378,2]
[353002836,1739484645878,-500.0,0.0001378,2]
[353002837,1739484645887,-500.0,0.0001378,2]
[353002838,1739484645897,-500.0,0.0001378,2]
[353002839,1739484645906,-500.0,0.0001378,2]
[353002840,1739484645916,-500.0,0.0001378,2]
[353002841,1739484645925,-500.0,0.0001378,2]
[353002842,1739484645935,-500.0,0.0001378,2]
[353002843,1739484645945,-500.0,0.0001378,2]
[353002844,1739484645955,-501.37258868,0.0001378,2]
[353002845,1739484645965,-186.96,0.0001378,2]
[353002846,1739484645974,-500.0,0.0001378,2]
[353002847,1739484645984,-500.0,0.0001378,2]
[353002848,1739484645993,-500.0,0.0001378,2]
[353002849,1739484646002,-500.0,0.0001378,2]
[353002850,1739484646012,-500.0,0.0001378,2]
[353002851,1739484646021,-500.0,0.0001378,2]
[353002852,1739484646032,-500.0,0.0001378,2]
[353002853,1739484646044,-500.0,0.0001378,2]
[353002855,1739484646054,-500.0,0.0001378,2]
[353002857,1739484646064,-500.0,0.0001378,2]
[353002859,1739484646074,-500.0,0.0001378,2]
[353002861,1739484646083,-500.0,0.0001378,2]
[353002863,1739484646093,-500.0,0.0001378,2]
[353002865,1739484646102,-500.0,0.0001378,2]
[353002867,1739484646113,-381.46348172,0.0001378,2]
[353002869,1739484646122,-500.0,0.0001378,2]
[353002870,1739484646131,-500.0,0.0001378,2]
[353002871,1739484646141,-500.0,0.0001378,2]
[353002872,1739484646150,-500.0,0.0001378,2]
[353002874,1739484646160,-747.2,0.0001378,2]
[353002876,1739484646171,-500.0,0.0001378,2]
[353002878,1739484646180,-500.0,0.0001378,2]
[353002880,1739484646189,-500.0,0.0001378,2]
[353002882,1739484646198,-893.53,0.0001378,2]
[353002884,1739484646207,-500.0,0.0001378,2]
[353002885,1739484646217,-500.0,0.0001378,2]
[353002887,1739484646227,-500.0,0.0001378,2]
[353002889,1739484646236,-500.0,0.0001378,2]
[353002890,1739484646245,-254.36588402,0.0001378,2]
[353002892,1739484646255,-500.0,0.0001378,2]
[353002894,1739484646264,-500.0,0.0001378,2]
[353002896,1739484646274,-500.0,0.0001378,2]
[353002898,1739484646284,-475.09830195,0.0001378,2]
[353002900,1739484646293,-500.0,0.0001378,2]
[353002901,1739484646302,-276.8,0.0001378,2]
[353002902,1739484646312,-500.0,0.0001378,2]
[353002903,1739484646322,-500.0,0.0001378,2]
[353002904,1739484646331,-500.0,0.0001378,2]
[353002905,1739484646340,-500.0,0.0001378,2]
[353002906,1739484646350,-977.64,0.0001378,2]
[353002907,1739484646360,-639.64,0.0001378,2]
[353002908,1739484646369,-500.0,0.0001378,2]
[353002909,1739484646379,-606.43,0.0001378,2]
[353002910,1739484646388,-500.0,0.0001378,2]
[353002911,1739484646398,-2464.6,0.0001378,2]
[353002912,1739484646407,-552.36,0.0001378,2]
[353002913,1739484646417,-500.0,0.0001378,2]
[353002914,1739484646426,-500.0,0.0001378,2]
[353002915,1739484646435,-500.0,0.0001378,2]
[353002916,1739484646445,-500.00000001,0.0001378,2]
[353002917,1739484646454,-8522.57,0.0001378,2]
[353002918,1739484646464,-500.0,0.0001378,2]
[353002919,1739484646474,-500.0,0.0001378,2]
[353002920,1739484646484,-500.0,0.0001378,2]
[353002921,1739484646493,-500.0,0.0001378,2]
[353002922,1739484646503,-500.0,0.0001378,2]
[353002923,1739484646512,-500.0,0.0001378,2]
[353002924,1739484646521,-500.0,0.0001378,2]
[353002925,1739484646530,-500.0,0.0001378,2]
[353002926,1739484646540,-500.0,0.0001378,2]
[353002927,1739484646550,-500.0,0.0001378,2]
[353002928,1739484646561,-500.0,0.0001378,2]
[353002929,1739484646572,-500.0,0.0001378,2]
[353002930,1739484646581,-500.0,0.0001378,2]
[353002931,1739484646591,-500.0,0.0001378,2]
[353002932,1739484646601,-322.55,0.0001378,2]
[353002933,1739484646611,-500.0,0.0001378,2]
[353002934,1739484646623,-289.66,0.0001378,2]
[353002935,1739484646633,-500.0,0.0001378,2]
[353002936,1739484646642,-500.0,0.0001378,2]
[353002937,1739484646652,-500.0,0.0001378,2]
[353002938,1739484646663,-500.0,0.0001378,2]
[353002939,1739484646672,-591.57814628,0.0001378,2]
[353002940,1739484646683,-500.0,0.0001378,2]
[353002941,1739484646692,-500.0,0.0001378,2]
[353002942,1739484646703,-500.0,0.0001378,2]
[353002943,1739484646713,-1033.69,0.0001378,2]
[353002944,1739484646722,-501.54684381,0.0001378,2]
[353002945,1739484646731,-500.0,0.0001378,2]
[353002946,1739484646741,-196.26052498,0.0001378,2]
[353002947,1739484646751,-567.09,0.0001378,2]
[353002948,1739484646761,-500.0,0.0001378,2]
[353002949,1739484646770,-500.0,0.0001378,2]
[353002950,1739484646780,-3653.01,0.0001378,2]
[353002951,1739484646790,-500.0,0.0001378,2]
[353002952,1739484646800,-157.29,0.0001378,2]
[353002953,1739484646815,-500.0,0.0001378,2]
[353002954,1739484646825,-534.4,0.0001378,2]
[353002955,1739484646835,-500.0,0.0001378,2]
[353002956,1739484646844,-500.0,0.0001378,2]
[353002957,1739484646854,-500.0,0.0001378,2]
[353002958,1739484646863,-500.0,0.0001378,2]
[353002959,1739484646873,-500.0,0.0001378,2]
[353002960,1739484646884,-500.0,0.0001378,2]
[353002961,1739484646893,-403.83,0.0001378,2]
[353002962,1739484647027,-503.67975763,0.0001378,2]
[353002963,1739484647038,-505.00633852,0.0001378,2]
[353002964,1739484647048,-500.0,0.0001378,2]
[353002965,1739484647058,-500.0,0.0001378,2]
[353002966,1739484647071,-708.49,0.0001378,2]
[353002967,1739484647080,-500.0,0.0001378,2]
[353002968,1739484647090,-609.08,0.0001378,2]
[353002969,1739484647099,-500.0,0.0001378,2]
[353002970,1739484647109,-523.66,0.0001378,2]
[353002971,1739484647119,-500.0,0.0001378,2]
[353002972,1739484647129,-500.0,0.0001378,2]
[353002973,1739484647138,-500.0,0.0001378,2]
[353002974,1739484647149,-1633.13,0.0001378,2]
[353002975,1739484647159,-431.88388573,0.0001378,2]
[353002976,1739484647168,-500.0,0.0001378,2]
[353002977,1739484647178,-317.61058948,0.0001378,2]
[353002978,1739484647188,-573.12641476,0.0001378,2]
[353002979,1739484647199,-500.0,0.0001378,2]
[353002980,1739484647209,-385.87795808,0.0001378,2]
[353002981,1739484647219,-500.0,0.0001378,2]
[353002982,1739484647229,-200.22687865,0.0001378,2]
[353002983,1739484647239,-338.19,0.0001378,2]
[353002984,1739484647249,-500.0,0.0001378,2]
[353002985,1739484647258,-500.0,0.0001378,2]
[353002986,1739484647268,-500.0,0.0001378,2]
[353002987,1739484647278,-477.69,0.0001378,2]
[353002988,1739484647288,-611.03,0.0001378,2]
[353002989,1739484647298,-500.0,0.0001378,2]
[353002990,1739484647308,-504.1,0.0001378,2]
[353002991,1739484647320,-500.0,0.0001378,2]
[353002992,1739484647330,-500.0,0.0001378,2]
[353002993,1739484647339,-500.0,0.0001378,2]
[353002994,1739484647349,-500.0,0.0001378,2]
[353002995,1739484647359,-151.0,0.000138,2]
[353002996,1739484647369,-151.0,0.000138,2]
[353002997,1739484647379,-5045.6,0.00013862,2]
[353002998,1739484647389,-5045.6,0.00013862,2]
[353002999,1739484647399,-5045.6,0.00013862,2]
[353003000,1739484647409,-5045.6,0.00013862,2]
[353003001,1739484647419,-5045.61890672,0.00013862,2]
[353003002,1739484647429,-308.75,0.00013863,2]
[353003003,1739484647439,-500.0,0.00013863,2]
[353003004,1739484647448,-500.0,0.00013863,2]
[353003005,1739484647457,-500.0,0.00013863,2]
[353003006,1739484647466,-500.0,0.00013863,2]
[353003007,1739484647476,-500.0,0.00013863,2]
[353003008,1739484647486,-500.0,0.00013863,2]
[353003009,1739484647496,-502.8691632,0.00013863,2]
[353003010,1739484647505,-500.0,0.00013863,2]
[353003011,1739484647515,-500.0,0.00013863,2]
[353003012,1739484647525,-500.0,0.00013863,2]
[353003013,1739484647534,-500.0,0.00013863,2]
[353003014,1739484647544,-760.99,0.00013863,2]
[353003015,1739484647554,-500.0,0.00013863,2]
[353003016,1739484647565,-500.0,0.00013863,2]
[353003017,1739484647576,-525.60833296,0.00013863,2]
[353003018,1739484647587,-500.0,0.00013863,2]
[353003019,1739484647598,-500.0,0.00013863,2]
[353003020,1739484647608,-500.0,0.00013863,2]
[353003021,1739484647623,-500.0,0.00013863,2]
[353003022,1739484647633,-500.0,0.00013863,2]
[353003023,1739484647643,-531.63,0.00013863,2]
[353003024,1739484647653,-500.0,0.00013863,2]
[353003025,1739484647663,-500.0,0.00013863,2]
[353003026,1739484647673,-500.0,0.00013863,2]
[353003027,1739484647683,-500.0,0.00013863,2]
[353003028,1739484647694,-625.53298883,0.00013863,2]
[353003029,1739484647705,-500.0,0.00013863,2]
[353003030,1739484647715,-500.0,0.00013863,2]
[353003031,1739484647724,-500.0,0.00013863,2]
[353003032,1739484647735,-500.0,0.00013863,2]
[353003033,1739484647745,-500.0,0.00013863,2]
[353003034,1739484647755,-500.0,0.00013863,2]
[353003035,1739484647764,-500.0,0.00013863,2]
[353003036,1739484647774,-500.0,0.00013863,2]
[353003037,1739484647784,-500.0,0.00013863,2]
[353003038,1739484647794,-500.0,0.00013863,2]
[353003039,1739484647805,-500.0,0.00013863,2]
[353003040,1739484647818,-500.0,0.00013863,2]
[353003041,1739484647829,-500.0,0.00013863,2]
[353003042,1739484647839,-500.0,0.00013863,2]
[353003043,1739484647849,-500.0,0.00013863,2]
[353003044,1739484647859,-500.0,0.00013863,2]
[353003045,1739484647870,-500.0,0.00013863,2]
[353003046,1739484647881,-500.0,0.00013863,2]
[353003047,1739484647891,-500.0,0.00013863,2]
[353003048,1739484647901,-511.48011954,0.00013863,2]
[353003049,1739484647910,-500.0,0.00013863,2]
[353003050,1739484647920,-283.02,0.00013863,2]
[353003051,1739484647930,-500.0,0.00013863,2]
[353003052,1739484647942,-500.0,0.00013863,2]
[353003053,1739484647951,-500.0,0.00013863,2]
[353003054,1739484647961,-500.0,0.00013863,2]
[353003055,1739484647971,-609.48,0.00013863,2]
[353003056,1739484647981,-500.0,0.00013863,2]
[353003057,1739484647990,-212.14,0.00013863,2]
[353003058,1739484648000,-500.0,0.00013863,2]
[353003059,1739484648010,-747.2,0.00013863,2]
[353003060,1739484648020,-500.0,0.00013863,2]
[353003061,1739484648030,-893.53,0.00013863,2]
[353003062,1739484648040,-500.0,0.00013863,2]
[353003063,1739484648050,-500.0,0.00013863,2]
[353003064,1739484648060,-500.0,0.00013863,2]
[353003065,1739484648071,-394.28213388,0.00013863,2]
[353003066,1739484648199,-105.71786612,0.00013863,2]
[353003067,1739484648210,-500.0,0.00013863,2]
[353003068,1739484648220,-500.0,0.00013863,2]
[353003069,1739484648231,-817.79633388,0.00013863,2]
[353003070,1739484648248,-159.84366612,0.00013863,2]
[353003071,1739484648260,-582.65881248,0.00013863,2]
[353003072,1739484648273,-56.98118752,0.00013863,2]
[353003073,1739484648286,-500.0,0.00013863,2]
[353003074,1739484648298,-2464.6,0.00013863,2]
[353003075,1739484648307,-500.0,0.00013863,2]
[353003076,1739484648318,-500.0,0.00013863,2]
[353003077,1739484648331,-8522.57,0.00013863,2]
[353003078,1739484648343,-500.0,0.00013863,2]
[353003079,1739484648355,-500.0,0.00013863,2]
[353003080,1739484648367,-500.0,0.00013863,2]
[353003081,1739484648381,-500.0,0.00013863,2]
[353003082,1739484648392,-500.0,0.00013863,2]
[353003083,1739484648403,-500.0,0.00013863,2]
[353003084,1739484648413,-500.0,0.00013863,2]
[353003085,1739484648424,-500.0,0.00013863,2]
[353003086,1739484648434,-500.0,0.00013863,2]
[353003087,1739484648444,-500.0,0.00013863,2]
[353003088,1739484648454,-500.0,0.00013863,2]
[353003089,1739484648464,-500.0,0.00013863,2]
[353003090,1739484648474,-500.0,0.00013863,2]
[353003091,1739484648483,-500.0,0.00013863,2]
[353003092,1739484648490,-568.61,0.00013863,2]
[353003093,1739484648503,-500.0,0.00013863,2]
[353003094,1739484648513,-1033.69,0.00013863,2]
[353003095,1739484648524,-500.0,0.00013863,2]
[353003096,1739484648535,-500.0,0.00013863,2]
[353003097,1739484648545,-534.36175076,0.00013863,2]
[353003098,1739484648556,-3653.01,0.00013863,2]
[353003099,1739484648568,-366.17706072,0.00013863,2]
[353003100,1739484648582,-168.22293928,0.00013863,2]
[353003101,1739484648592,-362.79,0.00013863,2]
[353003102,1739484648603,-500.0,0.00013863,2]
[353003103,1739484648615,-644.45170563,0.00013863,2]
[353003104,1739484648625,-500.0,0.00013863,2]
[353003105,1739484648635,-708.49,0.00013863,2]
[353003106,1739484648646,-500.0,0.00013863,2]
[353003107,1739484648657,-609.08,0.00013863,2]
[353003108,1739484648668,-370.50032107,0.00013863,2]
[353003109,1739484648681,-153.15967893,0.00013863,2]
[353003110,1739484648691,-500.0,0.00013863,2]
[353003111,1739484648703,-1633.13,0.00013863,2]
[353003112,1739484648715,-500.0,0.00013863,2]
[353003113,1739484648726,-500.0,0.00013863,2]
[353003114,1739484648737,-611.03,0.00013863,2]
[353003115,1739484648749,-500.0,0.00013863,2]
[353003116,1739484648761,-500.0,0.00013863,2]
[353003117,1739484648772,-151.0,0.000139,2]
[353003118,1739484648784,-246.53142408,0.00013945,2]
[353003119,1739484648794,-190.38,0.00013945,2]
[353003120,1739484648806,-142.09708924,0.00013945,2]
[353003121,1739484648822,-618.89291076,0.00013945,2]
[353003122,1739484648833,-500.0,0.00013945,2]
[353003123,1739484648843,-500.0,0.00013945,2]
[353003124,1739484648855,-500.0,0.00013945,2]
[353003125,1739484648866,-500.0,0.00013945,2]
[353003126,1739484648877,-500.0,0.00013945,2]
[353003127,1739484648887,-231.15389847,0.00013945,2]
[353003128,1739484648901,-268.84610153,0.00013945,2]
[353003129,1739484648911,-500.0,0.00013945,2]
[353003130,1739484648921,-500.0,0.00013945,2]
[353003131,1739484648931,-500.0,0.00013945,2]
[353003132,1739484648942,-500.0,0.00013945,2]
[353003133,1739484648951,-500.0,0.00013945,2]
[353003134,1739484648961,-500.0,0.00013945,2]
[353003135,1739484648971,-577.21965953,0.00013945,2]
[353003136,1739484648981,-500.0,0.00013945,2]
[353003137,1739484648991,-500.0,0.00013945,2]
[353003138,1739484649001,-500.0,0.00013945,2]
[353003139,1739484649011,-500.0,0.00013945,2]
[353003140,1739484649021,-500.0,0.00013945,2]
[353003141,1739484649031,-254.75968449,0.00013945,2]
[353003142,1739484649044,-245.24031551,0.00013945,2]
[353003143,1739484649054,-224.96275224,0.00013945,2]
[353003144,1739484649214,-500.0,0.00013698,2]
[353003145,1739484649224,-500.0,0.00013698,2]
[353003146,1739484649236,-275.03724776,0.00013945,2]
[353003147,1739484649247,-747.2,0.00013945,2]
[353003148,1739484649259,-500.0,0.00013945,2]
[353003149,1739484649270,-893.53,0.00013945,2]
[353003150,1739484649281,-500.0,0.00013945,2]
[353003151,1739484649291,-166.95,0.00013945,2]
[353003152,1739484649302,-590.09305008,0.00013945,2]
[353003153,1739484649313,-500.0,0.00013945,2]
[353003154,1739484649324,-977.64,0.00013945,2]
[353003155,1739484649335,-639.64,0.00013945,2]
[353003156,1739484649346,-2464.6,0.00013945,2]
[353003157,1739484649356,-8522.57,0.00013945,2]
[353003158,1739484649470,-500.0,0.00013945,2]
[353003159,1739484649482,-500.0,0.00013945,2]
[353003160,1739484649492,-500.0,0.00013945,2]
[353003161,1739484649503,-500.0,0.00013945,2]
[353003162,1739484649512,-500.0,0.00013945,2]
[353003163,1739484649522,-500.0,0.00013945,2]
[353003164,1739484649532,-500.0,0.00013945,2]
[353003165,1739484649541,-500.0,0.00013945,2]
[353003166,1739484649551,-500.0,0.00013945,2]
[353003167,1739484649560,-451.6,0.00013945,2]
[353003168,1739484649572,-500.0,0.00013945,2]
[353003169,1739484649582,-1033.69,0.00013945,2]
[353003170,1739484649591,-500.0,0.00013945,2]
[353003171,1739484649600,-500.0,0.00013945,2]
[353003172,1739484649610,-3653.01,0.00013945,2]
[353003173,1739484649621,-534.4,0.00013945,2]
[353003174,1739484649631,-151.0,0.00013945,2]
[353003175,1739484649640,-500.0,0.00013945,2]
[353003176,1739484649649,-500.0,0.00013945,2]
[353003177,1739484649659,-412.02206616,0.00013945,2]
[353003193,1739485754143,-150.45769879,0.00010685,2]
[353003222,1739485832338,-214.73849521,0.00010685,2]
[353003223,1739485832348,-224.50823956,0.00012691,2]
[353003224,1739485832359,-319.40740691,0.00012691,2]
[353003227,1739485832377,-5094.07723778,0.00012691,2]
[353003239,1739485832486,-3260.72729704,0.00012691,2]
[353003242,1739485832498,-14795.94390801,0.00012691,2]
[353003243,1739485832507,-1100.0,0.00012993,2]
[353003247,1739485832517,-13268.2024786,0.00013672,2]
[353003250,1739485832527,-1557.85016591,0.00013696,2]
[353003252,1739485832536,-500.0,0.00013698,2]
[353003254,1739485832546,-505.72364639,0.00013698,2]
[353003256,1739485832555,-500.0,0.00013698,2]
[353003258,1739485832564,-500.0,0.00013698,2]
[353003260,1739485832574,-500.0,0.00013698,2]
[353003262,1739485832583,-427.20471527,0.00013698,2]
[353003264,1739485832593,-500.0,0.00013698,2]
[353003267,1739485832602,-500.0,0.00013698,2]
[353003270,1739485832611,-500.0,0.00013698,2]
[353003272,1739485832621,-500.0,0.00013698,2]
[353003274,1739485832630,-500.0,0.00013698,2]
[353003276,1739485832639,-500.0,0.00013698,2]
[353003278,1739485832648,-500.0,0.00013698,2]
[353003280,1739485832658,-502.17855827,0.00013698,2]
[353003283,1739485832668,-198.22712103,0.00013698,2]
[353003285,1739485832678,-500.0,0.00013698,2]
[353003288,1739485832687,-500.0,0.00013698,2]
[353003291,1739485832696,-500.0,0.00013698,2]
[353003294,1739485832705,-517.99895411,0.00013698,2]
[353003298,1739485832715,-500.0,0.00013698,2]
[353003301,1739485832725,-500.0,0.00013698,2]
[353003302,1739485832734,-500.0,0.00013698,2]
[353003307,1739485832744,-500.0,0.00013698,2]
[353003310,1739485832754,-500.0,0.00013698,2]
[353003313,1739485832764,-500.0,0.00013698,2]
[353003315,1739485832773,-500.0,0.00013698,2]
[353003317,1739485832783,-500.0,0.00013698,2]
[353003318,1739485832792,-500.0,0.00013698,2]
[353003320,1739485832801,-500.0,0.00013698,2]
[353003322,1739485832811,-500.0,0.00013698,2]
[353003324,1739485832820,-500.0,0.00013698,2]
[353003326,1739485832830,-500.0,0.00013698,2]
[353003328,1739485832840,-500.0,0.00013698,2]
[353003331,1739485832849,-500.0,0.00013698,2]
[353003332,1739485832858,-44.05239611,0.00013698,2]
[353003335,1739485832871,-455.94760389,0.00013698,2]
[353003337,1739485832881,-500.0,0.00013698,2]
[353003339,1739485832890,-500.0,0.00013698,2]
[353003341,1739485832900,-500.0,0.00013698,2]
[353003343,1739485832909,-500.0,0.00013698,2]
[353003345,1739485832919,-500.0,0.00013698,2]
[353003347,1739485832928,-297.70420624,0.00013698,2]
[353003349,1739485832938,-500.0,0.00013698,2]
[353003351,1739485832947,-500.0,0.00013698,2]
[353003353,1739485832957,-500.0,0.00013698,2]
[353003355,1739485832969,-500.0,0.00013698,2]
[353003357,1739485832979,-511.57584221,0.00013698,2]
[353003360,1739485832990,-500.0,0.00013698,2]
[353003362,1739485833002,-327.108618,0.00013698,2]
[353003364,1739485833013,-500.0,0.00013698,2]
[353003366,1739485833022,-500.0,0.00013698,2]
[353003367,1739485833032,-500.0,0.00013698,2]
[353003370,1739485833043,-500.0,0.00013698,2]
[353003372,1739485833053,-500.0,0.00013698,2]
[353003373,1739485833062,-500.0,0.00013698,2]
[353003376,1739485833072,-500.0,0.00013698,2]
[353003378,1739485833082,-507.6504282,0.00013698,2]
[353003380,1739485833092,-500.0,0.00013698,2]
[353003381,1739485833102,-500.0,0.00013698,2]
[353003384,1739485833113,-500.0,0.00013698,2]
[353003386,1739485833123,-500.0,0.00013698,2]
[353003388,1739485833133,-423.91390297,0.00013698,2]
[353003390,1739485833142,-500.0,0.00013698,2]
[353003392,1739485833153,-500.0,0.00013698,2]
[353003394,1739485833162,-553.49919283,0.00013698,2]
[353003395,1739485833172,-500.0,0.00013698,2]
[353003397,1739485833182,-507.26186931,0.00013698,2]
[353003399,1739485833192,-500.0,0.00013698,2]
[353003401,1739485833203,-501.31272975,0.00013698,2]
[353003403,1739485833213,-500.0,0.00013698,2]
[353003405,1739485833226,-368.11559736,0.00013698,2]
[353003407,1739485833235,-500.0,0.00013698,2]
[353003409,1739485833244,-539.2434124,0.00013698,2]
[353003412,1739485833255,-500.0,0.00013698,2]
[353003414,1739485833265,-500.0,0.00013698,2]
[353003416,1739485833276,-500.0,0.00013698,2]
[353003417,1739485833285,-500.0,0.00013698,2]
[353003420,1739485833295,-518.85325881,0.00013698,2]
[353003422,1739485833305,-509.04549237,0.00013698,2]
[353003424,1739485833316,-500.0,0.00013698,2]
[353003426,1739485833325,-500.0,0.00013698,2]
[353003428,1739485833336,-300.0,0.00013698,2]
[353003429,1739485833346,-500.0,0.00013698,2]
[353003432,1739485833356,-335.81725781,0.00013698,2]
[353003434,1739485833365,-500.0,0.00013698,2]
[353003435,1739485833375,-500.0,0.00013698,2]
[353003437,1739485833385,-500.0,0.00013698,2]
[353003439,1739485833395,-500.0,0.00013698,2]
[353003440,1739485833404,-500.0,0.00013698,2]
[353003441,1739485833414,-500.0,0.00013698,2]
[353003442,1739485833423,-500.0,0.00013698,2]
[353003443,1739485833433,-500.0,0.00013698,2]
[353003445,1739485833443,-500.0,0.00013698,2]
[353003446,1739485833452,-500.0,0.00013698,2]
[353003447,1739485833462,-500.0,0.00013698,2]
[353003448,1739485833472,-500.0,0.00013698,2]
[353003449,1739485833482,-500.0,0.00013698,2]
[353003450,1739485833492,-500.90956825,0.00013698,2]
[353003452,1739485833502,-500.0,0.00013698,2]
[353003454,1739485833512,-500.0,0.00013698,2]
[353003456,1739485833523,-500.0,0.00013698,2]
[353003457,1739485833532,-500.0,0.00013698,2]
[353003458,1739485833542,-500.0,0.00013698,2]
[353003459,1739485833552,-603.4190948,0.00013698,2]
[353003460,1739485833561,-392.13460441,0.00013698,2]
[353003462,1739485833571,-500.0,0.00013698,2]
[353003463,1739485833581,-500.0,0.00013698,2]
[353003465,1739485833591,-503.64867428,0.00013698,2]
[353003466,1739485833600,-500.0,0.00013698,2]
[353003468,1739485833609,-500.0,0.00013698,2]
[353003470,1739485833620,-665.87,0.00013698,2]
[353003471,1739485833630,-500.0,0.00013698,2]
[353003472,1739485833640,-500.0,0.00013698,2]
[353003474,1739485833649,-62.40041216,0.00013698,2]
[353003504,1739485838037,-437.59958784,0.00013698,2]
[353003505,1739485838047,-105.51493888,0.00013698,2]
[353003507,1739485838059,-403.40882923,0.00013698,2]
[353003509,1739485838068,-500.0,0.00013698,2]
[353003511,1739485838078,-24.92007297,0.00013698,2]
[353003524,1739485838281,-475.07992703,0.00013698,2]
[353003526,1739485838291,-500.0,0.00013698,2]
[353003527,1739485838300,-500.0,0.00013698,2]
[353003528,1739485838309,-500.0,0.00013698,2]
[353003529,1739485838319,-500.0,0.00013698,2]
[353003530,1739485838328,-500.0,0.00013698,2]
[353003531,1739485838338,-500.0,0.00013698,2]
[353003532,1739485838348,-500.0,0.00013698,2]
[353003533,1739485838357,-153.55705781,0.00013698,2]
[353003534,1739485838367,-500.0,0.00013698,2]
[353003535,1739485838376,-455.45,0.00013698,2]
[353003536,1739485838385,-215.91301516,0.00013698,2]
[353003537,1739485838397,-284.08698484,0.00013698,2]
[353003538,1739485838412,-500.0,0.00013698,2]
[353003539,1739485838421,-414.07419063,0.00013698,2]
[353003540,1739485838431,-537.39978055,0.00013698,2]
[353003541,1739485838440,-500.0,0.00013698,2]
[353003542,1739485838450,-500.0,0.00013698,2]
[353003543,1739485838459,-500.0,0.00013698,2]
[353003544,1739485838469,-407.37931506,0.00013698,2]
[353003545,1739485838526,-92.62068494,0.00013698,2]
[353003546,1739485838535,-500.0,0.00013698,2]
[353003547,1739485838544,-500.0,0.00013698,2]
[353003548,1739485838554,-500.0,0.00013698,2]
[353003549,1739485838563,-500.0,0.00013698,2]
[353003550,1739485838576,-500.0,0.00013698,2]
[353003551,1739485838586,-321.59207441,0.00013698,2]
[353003552,1739485838595,-500.0,0.00013698,2]
[353003553,1739485838604,-500.0,0.00013698,2]